Cogmind - Beta 14 @@@ ROGUE MODE // 2024.12.25 @ 17:19:15 Player: Serpag Result: Destroyed by D-53 Grenadier with Mini Grenade Launcher Performance ------------- Evolutions (0) 0 Regions Visited (2) 400 Robots Destroyed (13) 65 Value Destroyed (396) 396 Prototype IDs (0) 0 Alien Tech Used (0) 0 Bonus (0) 0 TOTAL SCORE: 861 Bonus ------- None Cogmind --------- Core Integrity 0/250 Matter 270/300 Energy 60/100 System Corruption 0% Temperature Cool (0) Movement Core (50) Location -10/Mines Parts ------- > --- POWER (1) -------- (None) > --- PROPULSION (2) --- (None) > --- UTILITY (2) ------ Seismic Detector > --- WEAPON (2) ------- (None) > --- INVENTORY (5) ---- Light Nuclear Core Peak State ------------ > --- POWER ------------ Light Ion Engine > --- PROPULSION ------- Wheel Wheel > --- UTILITY ---------- Heat Sink Improved Heat Sink > --- WEAPON ----------- Assault Rifle Light Assault Rifle > --- INVENTORY -------- Ion Engine EM Pulse Gun Datajack [Rating: 9] Favorites ----------- Power Ion Engine Engine Ion Engine Propulsion Aluminum Leg Leg Aluminum Leg Wheel Wheel Utility Improved Heat Sink Device Improved Heat Sink Weapon Mining Laser Energy Gun EM Pulse Gun Ballistic Gun Assault Rifle Launcher Mini Grenade Launcher Special Weapon Mining Laser Special Melee Weapon Datajack Build | -11 -10 -10 ------- Run | Yrd Mat Min Slots Evolved . | . . . Power . | . . . Propulsion . | . . . Utility . | . . . Weapon . | . . . Parts Attached 24 | 6 15 3 Power 2 | 1 1 . Engine 2 | 1 1 . Core . | . . . Reactor . | . . . Propulsion 7 | 2 5 . Treads . | . . . Leg 3 | . 3 . Wheel 4 | 2 2 . Hover . | . . . Flight . | . . . Utility 4 | 1 3 . Device 4 | 1 3 . Storage . | . . . Processor . | . . . Hackware . | . . . Protection . | . . . Artifact . | . . . Weapon 11 | 2 6 3 Energy Gun 3 | 1 1 1 Energy Cannon . | . . . Ballistic Gun 4 | 1 3 . Ballistic Cannon . | . . . Launcher 1 | . . 1 Special Weapon 2 | . 1 1 Impact Weapon . | . . . Slashing Weapon . | . . . Piercing Weapon . | . . . Special Melee Weapon 1 | . 1 . Unidentified Prototypes . | . . . Parts Lost 9 | . 3 6 Power 2 | . 1 1 Propulsion 1 | . 1 . Utility 2 | . 1 1 Weapon 4 | . . 4 Highest Loss Streak 6 | . 2 6 To Critical Strikes . | . . . Average Slot Usage (%) 77 | . 84 70 Engine 13 | . 14 13 Leg 6 | . 11 . Wheel 4 | . 8 . Device 26 | . 24 27 Energy Gun 5 | . 3 6 Ballistic Gun 9 | . 17 . Launcher 3 | . . 7 Special Weapon 6 | . . 14 Special Melee Weapon 1 | . 2 . Peak Build Rating 9 | 6 9 8 Average Rating 7 | 3 7 7 On Entrance 4 | . 6 7 Naked Turns . | . . . Heaviest Build 10 | 8 10 10 Greatest Support 20 | 20 20 3 Greatest Overweight (x) 3 | . 3 3 Average Overweight (x) 1 | . . 2 Largest Inventory Capacity 5 | 5 5 5 Average Capacity 5 | 5 5 5 Most Carried 5 | 3 5 3 Average Carried 2 | 1 2 2 Final Capacity 5 | 5 5 5 Final Carried 2 | 1 2 1 Class Distribution -------------------- 76% | Mutant 23% | Scavenger-Mutant Dominant Class ---------------- Mutant | -10/Materials Mutant | -10/Mines Resources | -11 -10 -10 ----------- Run | Yrd Mat Min Matter Collected 550 | 263 267 20 Remotely . | . . . Salvage Created 412 | 50 350 12 Parts 22 | 2 16 4 Haulers Intercepted . | . . . Recyclers Shooed . | . . . Parts Field Recycled . | . . . Retrieved Matter . | . . . Parts Self-Destructed . | . . . Prevented . | . . . Kills | -11 -10 -10 ------- Run | Yrd Mat Min Combat Hostiles Destroyed 11 | 1 8 2 Guns 8 | 1 7 . AOE 3 | . 1 2 Classes Destroyed 4 | 1 1 2 Builder 1 | . . 1 Watcher 1 | . 1 . Swarmer 2 | . . 2 Grunt 9 | 1 8 . Best Kill Streak 3 | 1 3 2 Combat Bots Only 2 | 1 2 2 Max Kills in Single Turn 2 | 1 1 2 Gunslinging . | . . . Exploded 2 | . 1 2 Melee . | . . . Uniques/NPCs Destroyed . | . . . Combat | -11 -10 -10 -------- Run | Yrd Mat Min Hostile Shots Fired 68 | 1 51 16 Missed 23 | . 18 5 Damage Taken 792 | 10 452 330 Core 272 | . 90 182 Absorbed by Shields . | . . . Core Remaining (%) 100 | 100 . . Volleys Fired 55 | 1 49 5 Largest 2 | 2 2 1 Hottest 60 | 60 40 40 Shots Fired 87 | 2 80 5 Gun 83 | 2 80 1 Cannon . | . . . Launcher 4 | . . 4 Special . | . . . Kinetic 76 | 1 75 . Thermal . | . . . Explosive 4 | . . 4 Electromagnetic 7 | 1 5 1 Robot Hit Streak 7 | 1 7 3 Robot Miss Streak 2 | . 2 1 Penetration Max . | . . . Secondary Targets 1 | . 1 . Max Gunslinging Chain 1 | . 1 . Shots Hit Robots 59 | 1 54 4 Core Hits 26 | 1 19 6 Critical Kills 1 | . 1 . Critical Parts Destroyed . | . . . Critical Strikes 1 | . 1 . Destroy 1 | . 1 . Melee Attacks 4 | . 4 . Impact . | . . . Slashing . | . . . Piercing . | . . . Sneak Attacks . | . . . Combat Hostiles . | . . . Follow-up Attacks . | . . . Damage Inflicted 757 | 15 595 147 Guns 547 | 15 522 10 Cannons . | . . . Explosions 206 | . 69 137 Melee . | . . . Ramming 4 | . 4 . Kinetic 479 | . 479 . Thermal 69 | . 69 . Explosive 137 | . . 137 Electromagnetic 68 | 15 43 10 Impact . | . . . Slashing . | . . . Piercing . | . . . Highest Corruption . | . . . Average Corruption . | . . . Corruption Purged . | . . . Corruption Blocked . | . . . Overload Shots . | . . . Overflow Damage . | . . . Projectiles . | . . . Explosions . | . . . Melee . | . . . Knockbacks . | . . . Impact . | . . . Kinetic . | . . . Secondary . | . . . Self-Inflicted Damage 2 | . 2 . Shots . | . . . Rammed 1 | . 1 . Targets Rammed 1 | . 1 . Kicked . | . . . Crushed . | . . . Highest Temperature 17 | 6 17 . Average Temperature 8 | 6 17 . Received Heat Transfer 330 | 6 324 . Siege Activations . | . . . Robots Corrupted . | . . . Combat Hostiles . | . . . Parts Fried . | . . . Impact Corruptions . | . . . Robots Melted . | . . . Combat Hostiles . | . . . Parts Melted . | . . . Heat Transferred 100 | . 100 . Parts Sabotaged . | . . . Parts Stolen . | . . . Parts Stripped . | . . . Power Chain Reactions 1 | . 1 . Alert | -11 -10 -10 ------- Run | Yrd Mat Min Peak Influence 158 | 20 158 104 Initial 46 | . 13 46 Average 68 | 4 87 54 Maximum Alert Level . | . . . Low Security (%) 100 | 100 100 100 Level 1 . | . . . Level 2 . | . . . Level 3 . | . . . Level 4 . | . . . Level 5 . | . . . High Security . | . . . Max Security . | . . . Squads Dispatched 2 | . 2 . Investigation 1 | . 1 . Extermination . | . . . Reinforcement 1 | . 1 . Assault . | . . . Garrison . | . . . Intercept . | . . . Searches Triggered . | . . . Construction Impeded . | . . . Haulers Reinforced . | . . . Active Scanning Responses . | . . . Cargo Convoy Interrupts . | . . . Stealth | -11 -10 -10 --------- Run | Yrd Mat Min Distress Signals 2 | . 2 . Communications Jammed . | . . . Distress Signals . | . . . Times Spotted 17 | 1 12 4 Peak Tracking Total 5 | 1 5 3 Tactical Retreats . | . . . Traps | -11 -10 -10 ------- Run | Yrd Mat Min Traps Triggered 4 | . 4 . Indirectly . | . . . Trap Hack Attempts . | . . . Triggered . | . . . Disarmed . | . . . Reprogrammed . | . . . Reused . | . . . Traps Extracted . | . . . Installed . | . . . Triggered . | . . . Machines | -11 -10 -10 ---------- Run | Yrd Mat Min Machines Disabled 1 | . 1 . Max in Single Turn 1 | . 1 . Machines Repaired . | . . . Machines Dismantled . | . . . Machines Sabotaged . | . . . Overloaded Fab Kills . | . . . Hacking | -11 -10 -10 --------- Run | Yrd Mat Min Machines Accessed 3 | . 3 . Terminals 2 | . 2 . Fabricators . | . . . Repair Stations . | . . . Recycling Units 1 | . 1 . Scanalyzers . | . . . Garrison Access . | . . . Total Hacks 12 | . 12 . Successful 10 | . 10 . Failed 2 | . 2 . Catastrophic . | . . . Database Lockouts . | . . . Manual . | . . . Terminals 8 | . 8 . Fabricators . | . . . Repair Stations . | . . . Recycling Units 4 | . 4 . Scanalyzers . | . . . Garrison Access . | . . . Terminal Hacks 6 | . 6 . Record 4 | . 4 . Emergency Access Points 1 | . 1 . Dispatch Records 1 | . 1 . Fabricator Hacks . | . . . Repair Station Hacks . | . . . Recycling Unit Hacks 4 | . 4 . Recycle Component 1 | . 1 . Process 2 | . 2 . Retrieve Matter 1 | . 1 . Scanalyzer . | . . . Garrison Access Hacks . | . . . Unauthorized Hacks . | . . . Terminals . | . . . Fabricators . | . . . Repair Stations . | . . . Recycling Units . | . . . Scanalyzers . | . . . Garrison Access . | . . . Data Cores Recovered . | . . . Used . | . . . Hacking Detections 3 | . 3 . Full Trace Events 2 | . 2 . Feedback Events . | . . . Feedback Blocked . | . . . Robot Schematics Acquired . | . . . Robots Built . | . . . Authchips . | . . . Time . | . . . Total Robot Build Rating . | . . . Part Schematics Acquired . | . . . Parts Built . | . . . Authchips . | . . . Time . | . . . Total Part Build Rating . | . . . Parts Repaired . | . . . Time . | . . . Parts Recycled 1 | . 1 . Recycled Matter 5 | . 5 . Retrieved Matter 5 | . 5 . Retrieved Components . | . . . Parts Scanalyzed . | . . . Part Schematics Acquired . | . . . Parts Damaged . | . . . Bothacking | -11 -10 -10 ------------ Run | Yrd Mat Min Used RIF Installer . | . . . Robots Hacked 1 | . 1 . Non-combat . | . . . Combat 1 | . 1 . Robot Hacks Applied 1 | . 1 . parse_system 1 | . 1 . Relay Couplers Released . | . . . Fabnet Peak Effective % . | . . . Robots Rewired . | . . . Allies Hacked . | . . . Hacks Repelled . | . . . Allies | -11 -10 -10 -------- Run | Yrd Mat Min Total Allies . | . . . Largest Group . | . . . Highest-Rated Group . | . . . Highest-Rated Ally . | . . . Total Orders . | . . . Ally Attacks . | . . . Total Damage . | . . . Kills . | . . . Allies Corrupted . | . . . Allies Melted . | . . . Intel | -11 -10 -10 ------- Run | Yrd Mat Min Robot Analysis Total . | . . . Derelict Logs Recovered 1 | . . 1 Drone Launches . | . . . Drone Recoveries . | . . . Exploration | -11 -10 -10 ------------- Run | Yrd Mat Min Turns Passed 1181 | 68 592 521 Spaces Moved 766 | 72 394 300 Core 395 | 17 78 300 Treads . | . . . Legs 161 | . 161 . Wheels 210 | 55 155 . Hover . | . . . Flight . | . . . Fastest Speed 50 | 50 80 150 Average Speed 129 | 72 110 168 Slowest Speed 200 | 80 200 200 Overloaded Moves . | . . . Propulsion Burnouts . | . . . Robots Hopped . | . . . Cave-ins Triggered . | . . . Exploration Rate (%) 46 | 9 65 66 Regions Visited 2 Branch Regions 1 Pre-discovered Areas 1 | . . 1 Known Exits Taken . | . . . Unknown Exits Taken 2 | 1 1 . Scrap Searched . | . . . Spaces Dug . | . . . Terrain Destroyed 47 | . 5 42 Melee . | . . . Projectile . | . . . AOE 47 | . 5 42 Terrain Rammed . | . . . Walls Destroyed . | . . . Machines Disabled . | . . . Actions | -11 -10 -10 --------- Run | Yrd Mat Min Total 873 | 85 479 309 Wait . | . . . Move 764 | 71 393 300 Hop . | . . . Pick Up 21 | 7 13 1 Fast Attach 1 | . 1 . Attach 19 | 6 11 2 Detach 2 | . 2 . Swap 4 | . 3 1 Drop 2 | . 2 . Fire 55 | 1 49 5 Melee 4 | . 4 . Ram 1 | . 1 . Kick . | . . . Crush . | . . . Escape Stasis . | . . . Rewire . | . . . Trap . | . . . Miscellaneous . | . . . Route ------- -11/Scrapyard -10/Materials -10/Mines (discovered 1 exit: [*Mat]) History --------- Turn | Location | Event 2 | -11/Scrapyard | Met Revision 17 47 | -11/Scrapyard | Discovered new exit (range 8) 69 | -11/Scrapyard | Entered Materials 342 | -10/Materials | Discovered new exit (range 13) 661 | -10/Materials | Entered Mines 738 | -10/Mines | Assembled infested the area 743 | -10/Mines | Assisted by a Guerilla fighting off Assembled 757 | -10/Mines | Learned location of Storage (-8) 808 | -10/Mines | Build established: Mutant 821 | -10/Mines | Discovered new exit (range 12) 1173 | -10/Mines | Core integrity fell below 50% 1177 | -10/Mines | Core integrity fell below 20% 1182 | -10/Mines | Destroyed by D-53 Grenadier with Mini Grenade Launcher Last Messages --------------- K-01 Serf collects debris. U-05 Engineer lays Concrete. U-05 Engineer builds a Wall. K-01 Serf collects debris. U-05 Engineer builds a Wall. K-01 Serf collects debris. U-05 Engineer lays Concrete. The unstable cave ceiling collapses. U-05 Engineer builds a Wall. U-05 Engineer lays Concrete. U-05 Engineer builds a Wall. K-01 Serf collects debris. U-05 Engineer destroyed. Mining Laser destroyed. Ion Engine destroyed. Imp. Heat Sink destroyed. Mni. Grenade Launcher destroyed. The unstable cave ceiling collapses. Mining Laser destroyed. EM Pulse Gun destroyed. Map ----- +----------------------------------------------------+ | ?????????????????????????????????????????????????? | | ?????????????????????????????????????????????????? | | ?????????????????????????????????????????????????? | | ?????????????????????????????????????????????????? | | ?????????????????????????????????????????????????? | | ?????????????????????????????????????????????????? | | ?????????????????????????????????????????????????? | | ?????????????????????????????????????????????????? | | ?????####??#####?????????????????????????????????? | | ????## ## ??????????????????????????????????? | | ??### #?????????????????????????????????????? | | ### #????????????????????????????????????????? | | ##???????????????????????????????????????? | | ##??????????????????????????????????????? | | #??????????????????????????????????????? | | # #??????????????????????????????????????? | | ## #??????????????????????????????????????? | | ?# ####???????????????????????????????????? | | ?# ## ???????????????????????????????????? | | ?## # ### #??????????????????#????????????????? | | ??#### #?# #????????######### ###??#???????????? | | ?????# #?# #???????## # # #???????????? | | ????## #?# ####???## ###?????????? | | ??### ### ##### %%%????????? | | ?## ## d % ????????? | | ?# @ #????????????? | | ## # #???????????? | | # ##???????????? | | #### #????????????????? | | ## #??#### ### # #????????????????? | | ?## #?????# #?#####?### ##????????????????? | | ??# #?????# #??????????###?????????????????? | | ?# ???# #??????????????????????????????? | | ?# #?# #??????????????????????????????? | | ### ###### #?# #??????????????????????????????? | | #?####????? #?# ###????????????????????????????? | | ##?????????? #?# ##?????????????#?????????????? | | ##??????????### #????????????? ?????????????? | | #???????????# ##????????????[?????????????? | | #????????????# #######?????? ????????????? | | #????????????## ##????? ????????????? | | #?????????????## ##???? #??#######??? | | ##??????????#### ## ##??? #?## ##?? | | ####???????? ## #### #### ### ##? | | ########??? ## #??## ## #? | | " ## ##??# ### #???## ## ## | | #### ## # ##???## ### #### # | | # ## # ##????# ### ### | | # ### # #?????# ## ## | | ## ##?# #?????# #???? | +----------------------------------------------------+ Best States ------------- Heat Dissipation 49 Energy Generation 10 Energy Capacity 250 Matter Stores 300 Matter Capacity 300 Sight Range 16 Terrain Scan Density 10 Evasion (%) 55 Item Schematics ----------------- None Robot Schematics ------------------ None Fabricated ------------ Nothing Alien Tech Used ----------------- None Achievements -------------- None Challenges ------------ None Game ------ Seed ElectrostormMetaNukerbomber Manual? 0 Play Time 00:13:52 Cumulative 1.0 hours Start 2024.12.25 @ 17:00:45 End 2024.12.25 @ 17:19:15 Sessions 1 Manual Loads 0 Difficulty Rogue Special Mode None Game No. 3 Rogue 3 Adventurer 0 Explorer 0 Win Type - Total 0 Types 0/0/0/0/0/0/0/0/0 Lore% 1 Gallery% 3 Achievement% 3 Wizard Run 0 Options --------- Layout 1 ASCII 0 Keyboard 0 Movement Mouse Keybinds 0 Fullscreen 2 Font 24/Smallcaps Map View 50x35 Zoom Use 0% Tactical HUD 0 Map Filters NONE Filters NONE Steam 1 RUN: f48cb193-4820-4680-81e4-1d35d52b5fa2